{"text_format":"1","workbook":"xlsx","n_sheets":4,"sheets":["Лист1","Лист2","Лист3","Материалы "],"not_rendered":{"charts":0,"images":0,"macros":1,"external_links":0,"defined_names":1,"comments":0,"pivot_tables":0},"unopened":[],"bounds":{"document_bytes":16777216,"sheet_cells":100000,"rows_first":2000,"rows_last":500,"rows_between":2000,"halvings":0,"cell_chars":16384,"cell_head_chars":4096},"cells_cut":0,"cells_raw":0,"read":"whole","date_system":"1900"}

{"sheet":"Лист1","index":0,"n_rows":57,"n_cols":6,"rows_kept":57,"cut":false,"hidden":false,"merged":[[55,3,55,4],[0,3,0,5],[1,3,1,5],[2,3,2,5],[6,3,6,5],[8,0,9,5],[46,3,46,4],[51,3,51,4],[3,3,3,5],[12,0,12,5],[42,1,42,4],[27,0,27,5],[13,6,13,9],[14,6,14,9],[15,6,15,9],[16,6,16,9],[17,6,17,9],[18,6,18,9],[19,6,19,9],[20,6,20,9],[21,6,21,9],[22,6,22,9],[23,6,23,9],[24,6,24,9],[25,6,25,9],[26,6,26,9],[28,6,28,9],[35,6,35,9],[36,6,36,9],[37,6,37,9],[38,6,38,9],[29,6,29,9],[30,6,30,9],[31,6,31,9],[32,6,32,9],[34,6,34,9]]}
[null,null,null,"«УТВЕРЖДАЮ»"]
[null,null,null,"Директор ДЭиБПД"]
[null,null,null,"АО «Коломенский Завод»"]
[null,null,null,"______________   Степанкевич В.С."]
[]
[]
[null,"№ __1-КЗ.М10.К__",null,"от «_30_»   _июля_  20 _26_ г."]
[]
["Ведомость объемов работ \nОбъект: «Реконструкция цеха М-10, инв. №290000111 ( 3-ий пролет в осях «Н-Р»/«11-22»; «4-3'»)» \nна территории АО «Коломенский Завод». "]
[]
["№","Вид работ","Ед. измер","Формула расчета","Объем","Примечание"]
[1,{"$f":"A12+1","v":2},{"$f":"B12+1","v":3},4,5,6]
["Электроснабжение."]
[1,"Монтаж распределительного шкафа с рубильником","шт.","4+1",{"$f":"ВычислитьЯчейку(D14)","v":{"$error":"#NAME?"}},"ШР11-73707-22У3, 380В, 3хПН2-100А+2хПН2-250А(1 шт.);\nШР11-73702-22У3, 380В, Iн.=250А, 5хПН2-100А(4 шт)."]
[{"$f":"A14+1","v":2},"Монтаж силового ящика с рубильником","шт.",4,{"$f":"ВычислитьЯчейку(D15)","v":{"$error":"#NAME?"}},"ЯРП11М-371-32УХЛ3У3, 380В, Iн.=400А. Степень защиты IP32."]
[{"$f":"A15+1","v":3},"Монтаж силового ящика с автоматическими выключателями","шт.","4+4+1+1",{"$error":"#NAME?"}," - Бокс КМПн 1/4 \"IEК\" пластиковый, навесной,\n4 модуля. Артикул МКР31-N-04-30-135(4 шт.);\n- Автомат дифференциальный АД12 \"IEК\",\nдвухполюсный, Iн.=16А, Iн.дифф.=30mА(4 шт.);\n- Бокс КМПн 2/4 \"IEK\"пластиковый, навесной,\n4 модуля. Артикул МКР42-N-04-30-12(1 шт.);\n- Автомат дифференциальный АД12,\nдвухполюсный, Iн.=6А, Iн.дифф.=30mА(1 шт.)."]
[{"$f":"A16+1","v":4},"Прокладка силового кабеля с затяжкой в гофрированную трубу в полу","м.п.","30+35+5",{"$error":"#NAME?"},"Кабель силовой КГВВнг 4х95 (30 м);\nКабель силовой КГВВнг 4х50 (35 м);\nКабель силовой КГВВнг 4х25 (5 м);"]
[{"$f":"A17+1","v":5},"Прокладка силового кабеля с креплением к колонне на скобах","м.п.","5+25",{"$f":"ВычислитьЯчейку(D18)","v":{"$error":"#NAME?"}},"Кабель силовой КГВВнг 4х70 (5 м);\nКабель силовой КГВВнг 4х95 (25 м);"]
[{"$f":"A18+1","v":6},"Прокладка гофрированной трубы двустенной d=63 мм по колонне","м.п.","20+5",{"$error":"#NAME?"},"Труба d=63 \"RuVinil\" гибкая гофрированная\nлегкого типа. Код 16301. (25 м);\nСкоба К146пУ2. ТУ 36-1448-82.(50 шт.);\nСкоба К731У2, d=20мм. ТУ 36-1448-82.(25 шт.)."]
[{"$f":"A19+1","v":7},"Прокладка гофрированной трубы двустенной d=63 мм в полу","м.п.",3,{"$error":"#NAME?"},"Труба d=63 из ПНД \"RuVinil\" гибкая\nгофрированная тяжелого типа. Код 26311.(3 м)"]
[8,"Прокладка гофрированной трубы двустенной d=90 мм в полу","м.п.",25,{"$error":"#NAME?"},"Труба гофрированная двустенная ПНД/ПВД d=90 \"RUVinil\". Артикул Т2-КЛО-090К.(25 м)"]
[9,"Прокладка гофрированной трубы двустенной d=50 мм в полу","м.п.",30,{"$error":"#NAME?"},"Труба d=50 \"RuVinil\" гибкая гофрированная\nлегкого типа. Код 15001. (30 м)"]
[10,"Прокладка силового кабеля с затяжкой в гофрированную трубу в полу","м.п.","10+45+8",{"$f":"ВычислитьЯчейку(D23)","v":{"$error":"#NAME?"}},"Кабель ВВГнг 4х2,5 (63 м)"]
[{"$f":"A23+1","v":11},"Прокладка силового кабеля с креплением к стене на скобах","м.п.","35+5",{"$f":"ВычислитьЯчейку(D24)","v":{"$error":"#NAME?"}},"Кабель ВВГнг 4х1,5 (40 м)"]
[12,"Прокладка гофрированной трубы двустенной d=25 мм в полу","м.п.","35+10+15",{"$f":"ВычислитьЯчейку(D25)","v":{"$error":"#NAME?"}},"Труба d=25 из ПНД \"RuVinil\" гибкая\nгофрированная тяжелого типа. Код 22511. (60 м);"]
[13,"Прокладка гофрированной трубы двустенной d=20 мм в полу","м.п.","30+3",{"$f":"ВычислитьЯчейку(D26)","v":{"$error":"#NAME?"}},"Труба d=20 из ПНД \"RuVinil\" гибкая\nгофрированная тяжелого типа. Код 22011. (30 м);\nТруба гофрированная d=20 \"RUVinil\".\nлегкого типа. Артикул 12001. (3 м)."]
[14,"Присоединение наконечников","шт.","64+16+32+10+10",{"$f":"ВычислитьЯчейку(D27)","v":{"$error":"#NAME?"}},"Наконечник 95-12-15-МУХЛ3. ГОСТ 7386-80. (64 шт.)\nНаконечник 70-10-13-МУХЛ3. ГОСТ 7386-80.(16 шт);\nНаконечник 50-10-11-МУХЛ3. ГОСТ 7386-80. (32 шт.);\nНаконечник 25-8-8-МУХЛ3. ГОСТ 7386-80. (10 шт.);\nНаконечник 16-6-6-МУХЛ3. ГОСТ 7386-80. (10 шт.)."]
["Воздухоснабжение"]
[{"$f":"A27+1","v":15},"Прокладка трубы полипропиленовой PP-R 20х3,4","м.п.","6+35",{"$f":"ВычислитьЯчейку(D29)","v":{"$error":"#NAME?"}},"Трубы полипропиленовой PP-R 20х3,4 (41м); \nФитинг полипропиленовый муфта d=20(18 шт.);\nФитинг полипропиленовый угольник d=20(35 шт.);\nФитинг полипропиленовый с переходом на наружнную резьбу (20мм х 1/2\") (26 шт.)"]
[{"$f":"A29+1","v":16},"Установка крана шарового муфтового","шт.","24+5",{"$f":"ВычислитьЯчейку(D30)","v":{"$error":"#NAME?"}},"Кран шаровый муфтовый 11Б27п1 d=15 мм(24 шт);\nКран шаровый муфтовый 11Б27п1 d=20 мм(5 шт);"]
[{"$f":"A30+1","v":17},"Монтаж фитингов  ","шт.","4*3",{"$f":"ВычислитьЯчейку(D31)","v":{"$error":"#NAME?"}},"Муфта Ду20 ГОСТ8966-75(4 шт.);\nСгон Ду20 ГОСТ8969-75(4 шт.);\nКонтрогайка Ду20 ГОСТ8968-75(4 шт.)"]
[18,"Присоединение стальных трубопроводов d=25 к существующему трубопроводу d=25 мм","шт.",1,{"$error":"#NAME?"}]
[19,"Прокладка трубы стальной 20*2,8","м.п.","6+10",{"$f":"ВычислитьЯчейку(D33)","v":{"$error":"#NAME?"}},"Труба20х2.8. ГОСТ3262-75(16 м)"]
[20,"Проведение гидравлических испытаний трубопровода на герметичность","м","6+10",16,"Согласно примечанию РД после монтажа выполнить гидравлические испытания трубопровода."]
[21,"Изготовление влагоотделителя из стальной трубы","м/кг","0.3/5.8","0.3/5.8","Труба стальная бесшовная 159*5 (0,3 м)"]
[22,"Установка влагоотделителя","шт.",1,{"$f":"ВычислитьЯчейку(D36)","v":{"$error":"#NAME?"}}]
[23,"Огрунтовка металлических поверхностей трубопроводов","м2","1+5",{"$error":"#NAME?"},"Грунт ГФ-021"]
[24,"Окраска металлических огрунтованных поверхностей","м2","1+5",{"$error":"#NAME?"},"Эмаль ПФ-115"]
[25,"Монтаж осушителя рефрежераторного типа","м2","1+4",{"$f":"ВычислитьЯчейку(D39)","v":{"$error":"#NAME?"}},"Осушитель рефрежераторного типа мод.IDFA4E-23 Q=510л/мин;G=1/2\" (1 шт.);\nОсушитель рефрежераторного типа мод.IDFA11E-23 Q=1330л/мин;G=3/4\" (4 шт.)"]
[]
[]
[]
[null,"Производство работ осуществляется в помещениях эксплуатируемого объекта капитального строительства, эксплуатация которого не прекращена, в том числе для объектов производственного и непроизводственного назначения без остановки рабочего процесса, при этом: в зоне производства работ отсутствуют загромождающие помещение предметы."]
[]
[null,"Составил:"]
[null,"Руководитель проекта ООО \"КикГеострой\"",null,"Липатов В.Е."]
[null,"                                                      (должность)                                                                                                                                               ",null,"(подпись)                               (ФИО)"]
[null,"«_20_»   _июля_  20 _26_ г."]
[]
[null,"Проверил:"]
[null,"Ведущий специалист отдела по строительству АО \"Коломенский Завод\"  ",null,"Самойлов А.О."]
[null,"                                                      (должность)                                                                                                                                               ",null,"(подпись)                               (ФИО)"]
[null,"«_20_»   _июля_  20 _26_ г."]
[]
[null,"Начальник отдела по строительству АО \"Коломенский Завод\"  ",null,"Губанов П.В."]
[null,"                                                      (должность)                                                                                                                                               ",null,"(подпись)                               (ФИО)"]
[null,"«_20_»   _июля_  20 _26_ г."]

{"sheet":"Лист2","index":1,"n_rows":42,"n_cols":17,"rows_kept":42,"cut":false,"hidden":false,"merged":[]}
[]
[]
[]
[]
[]
[null,8.4749999999999996,{"$f":"(0.45*4)","v":1.8},{"$f":"C6/0.2","v":9},{"$f":"(D6*B6)*2","v":152.54999999999998}]
[null,8.8000000000000007,{"$f":"24-(0.45*4)","v":22.2},{"$f":"C7/0.2","v":110.99999999999999},{"$f":"(D7*B7)*2","v":1953.6},null,{"$f":"E7+E6","v":2106.15}]
[null,null,null,null,null,null,{"$f":"E9+E10","v":2052.1187499999996}]
[null,5.5750000000000002,{"$f":"0.325","v":0.32500000000000001},{"$f":"C9/0.2","v":1.625},{"$f":"(D9*B9)*2","v":18.118750000000002}]
[null,24,{"$f":"8.475","v":8.4749999999999996},{"$f":"C10/0.2","v":42.374999999999993},{"$f":"(D10*B10)*2","v":2033.9999999999995},null,0.88800000000000001,{"$f":"((E6+E7+E9+E10)*G10)*0.001","v":3.6925426499999996}]
[]
[]
[]
[null,null,null,null,null,null,null,{"$f":"0.25*0.125*0.025","v":7.8125000000000004E-4},null,null,null,null,null,null,{"$f":"3.14*0.84","v":2.6375999999999999}]
[]
[null,null,null,null,null,null,null,null,{"$f":"H14*61","v":4.7656250000000004E-2},null,null,null,null,null,{"$f":"0.125*4","v":0.5}]
[null,null,null,null,null,null,null,null,null,{"$f":"I16*3","v":0.14296875000000001}]
[null,null,null,null,1,0.2,{"$f":"E18/F18","v":5},null,null,null,{"$f":"J17*2","v":0.28593750000000001},null,null,null,{"$f":"O14*O16","v":1.3188},null,{"$f":"O18*2","v":2.6375999999999999}]
[null,null,null,null,1,0.2,{"$f":"E19/F19","v":5},{"$f":"(G18+G19)*G10","v":8.8800000000000008}]
[null,null,null,null,null,null,null,null,{"$f":"H19*2","v":17.760000000000002}]
[]
[]
[]
[]
[]
[]
[]
[]
[]
[null,null,"Устройство трубопровода из полипропиленовых труб ","м",5]
[null,null,"Устройство трубки для пневмо систем ","м",1]
[null,null,"Устройство трубопровода из стальной трубы ВГП","м",3]
[null,null,"Монтаж крана муфтового с ручным приводом или без привода водопроводная на номинальное давление до 10 МПа, номинальный диаметр: 15 мм","шт",4]
[null,null,"Монтаж кранов шаровых Ø15","шт",4]
[null,null,"Монтаж крана муфтового Ø 20 ","шт",1]
[null,null,"Монтаж кранов шаровых Ø20","шт",1]
[null,null,"Устройство фитингов прямых с внутренней резьбой с накидной гайкой ","шт",1]
[null,null,"Устройство муфт полипропиленовых Ø 20 мм","шт",3]
[null,null,"Устройство фитингов полипропиленовых с переходом на наружную резьбу 20 мм","шт",2]
[null,null,"Установка сгонов стальных оцинкованных с муфтой и контргайкой, Ø 20 мм","шт",1]
[null,null,"Установка влагоотделителя","шт",1]
[null,null,"Врезка трубопровода в действующие магистрали, диаметр наружный врезаемой трубы 57 мм","шт",1]

{"sheet":"Лист3","index":2,"n_rows":39,"n_cols":6,"rows_kept":39,"cut":false,"hidden":false,"merged":[[8,0,9,5],[12,0,12,5],[16,0,16,5],[32,1,32,4],[33,1,33,4]]}
[null,null,null,"«УТВЕРЖДАЮ»"]
[null,null,null,"Директор ДЭиБПД"]
[null,null,null,"АО «Коломенский Завод»"]
[null,null,null,"______________   Степанкевич В.С."]
[]
[]
[null,"№ __2-КЗ.М10.Д__",null,"от «_23_»   _июня_  20 _25_ г."]
[]
["Дефектная ведомость объемов работ \nОбъект: «Устройство основания под моечную машину для мойки крышек цилиндров мод. ММ1042\nв цехе М-10 в осях Т-Ф/(+3.0м)14-15(+1.0м)» на территории АО «Коломенский Завод». "]
[]
["№","Вид работ","Ед. измер","Формула расчета","Объем","Примечание"]
[]
["Раздел. 1 Подготовочные работы в осях \"Т-Ф/(+3.0м)14-15(+1.0м)\""]
[1,"Прорезка существующих бетонных полов Т=300 мм","м.п","((10+9)*2)+0.33+0.33",{"$f":"ВычислитьЯчейку(D14)","v":{"$error":"#NAME?"}}]
[{"$f":"A14+1","v":2},"Разборка существующих бетонных полов Т=300 мм","м3","((10*8.65)+(5.55*0.33)+(2.75*0.33)+(0.75*0.33))*0.3",{"$f":"ВычислитьЯчейку(D15)","v":{"$error":"#NAME?"}}]
[{"$f":"A15+1","v":3},"Разработка грунта до отметки -0,400 мм","м3","((10*8.65)+(5.55*0.33)+(2.75*0.33)+(0.75*0.33))*0.1",{"$f":"ВычислитьЯчейку(D16)","v":{"$error":"#NAME?"}}]
["Раздел. 2 Устройство основания под моечную машину для мойки крышек цилиндров мод. ММ1042 в осях \"Т-Ф/(+3.0м)14-15(+1.0м)\""]
[{"$f":"A16+1","v":4},"Уплотнение грунта щебенем Т= 50 мм","м3","((10*8.65)+(5.55*0.33)+(2.75*0.33)+(0.75*0.33))*0.05",{"$f":"ВычислитьЯчейку(D18)*1.02","v":{"$error":"#NAME?"}},"Прим. Гравийный щебень фр. 20-40"]
[{"$f":"A18+1","v":5},"Устройство бетонной подготовки Т=100 мм","м3","((10*8.65)+(5.55*0.33)+(2.75*0.33)+(0.75*0.33))*0.1",{"$f":"ВычислитьЯчейку(D19)","v":{"$error":"#NAME?"}},"Прим. Бетон В15 (М200)"]
[{"$f":"A19+1","v":6},"Устройство обмазочной гидроизоляции (2 слоя)","м2","(10*8.65)+(5.55*0.33)+(2.75*0.33)+(0.75*0.33)",{"$f":"ВычислитьЯчейку(D20)","v":{"$error":"#NAME?"}},"Прим. Праймер битумный \"ТехноНиколь\""]
[7,"Устройство арматурного каркаса 200х200х12","тн.","(8.88*89)*0.001",{"$f":"ВычислитьЯчейку(D21)","v":{"$error":"#NAME?"}},"Прим. Арматура Ø12 А500С"]
[8,"Устройство арматурного каркаса 200х200х10","тн.","(6.17*89)*0.001",{"$f":"ВычислитьЯчейку(D22)","v":{"$error":"#NAME?"}},"Прим. Арматура Ø10 А500С"]
[9,"Устройство арматурного каркаса из арм. Ø 10","тн.","(2.4*89)*0.001",{"$error":"#NAME?"},"Прим. Арматура Ø10 А240"]
[10,"Бетонирование полов Т=300 мм ","м3","((10*8.65)+(5.55*0.33)+(2.75*0.33)+(0.75*0.33))*0.3",{"$f":"ВычислитьЯчейку(D24)","v":{"$error":"#NAME?"}},"Прим. Бетон В22.5 (М300)"]
[11,"Устройство деформационного шва из вспененного полиэтилена Т=10 мм; h=260 мм","м.п.","((10+9)*2)+0.33+0.33",{"$f":"ВычислитьЯчейку(D25)","v":{"$error":"#NAME?"}},"Прим. Вспененный полиэтилен НПС 10х1050x25000 мм"]
[12,"Шлифование поверхности фундамента","м2","(10*8.65)+(5.55*0.33)+(2.75*0.33)+(0.75*0.33)",{"$f":"ВычислитьЯчейку(D26)","v":{"$error":"#NAME?"}}]
[13,"Упрочнение бетонного покрытия пола сухой смесью","м2","(10*8.65)+(5.55*0.33)+(2.75*0.33)+(0.75*0.33)",{"$error":"#NAME?"},"Прим. Master Top 450"]
[14,"Покрытие ж/бетонного пола пропиткой","м2","(10*8.65)+(5.55*0.33)+(2.75*0.33)+(0.75*0.33)",{"$error":"#NAME?"},"Прим. Master Top C713 (Цвет серый, RAL 7035)"]
[15,"Прорезка деформационно-усадочных швов Т=10 мм","м.п.","((6*3)*3)+(1*3)",{"$error":"#NAME?"}]
[16,"Устройство деформационно-усадочных шва из герметика h=40 мм","м2","(((6*3)*3)+(1*3))*0.01",{"$f":"ВычислитьЯчейку(D30)","v":{"$error":"#NAME?"}},"Прим. Герметик полиуретановый (плотность 1250 г/м3)"]
[17,"Устройство деформационного шва из герметика h=40 мм","м2","(((10+9)*2)+0.33+0.33)*0.01",{"$f":"ВычислитьЯчейку(D31)","v":{"$error":"#NAME?"}},"Прим. Герметик полиуретановый (плотность 1250 г/м3)"]
[]
[null,"Производство работ осуществляется в помещениях эксплуатируемого объекта капитального строительства, эксплуатация которого не прекращена, в том числе для объектов производственного и непроизводственного назначения без остановки рабочего процесса, при этом: в зоне производства работ отсутствуют загромождающие помещение предметы."]
[null,"Объём посчитанной данной дефектной ведомостью может отличаться от фактического при выполнении строительно-монтажных работ.\nПри производстве строительно-монтажных работ могут возникнуть работы не учтённые данной деффектной ведомостью."]
[]
[null,"Проверил:"]
[null,"Начальник отдела по строительству АО \"Коломенский Завод\"  "]
[null,"                                                      (должность)                                                                                                                                               ",null,"Губанов П.В."]
[null,"\"23\" июня 2025 г. ",null,"(подпись)                               (ФИО)"]

{"sheet":"Материалы ","index":3,"n_rows":54,"n_cols":8,"rows_kept":54,"cut":false,"hidden":false,"merged":[[1,1,1,3],[34,1,34,3]]}
[]
[null,"Электроснабжение",null,null,null,{"$f":"SUM(F4:F34)","v":1065441}]
[null,"Монтаж распределительного шкафа с рубильником","ед. изи","кол","цена руб. с НДС","сумма руб. с НДС","ПРИМЕЧАНИЕ 1"]
[1,"ШР11-73707-22У3, 380В, 3хПН2-100А+2хПН2-250А(1 шт.);\n","шт",1,74000,{"$f":"E4*D4","v":74000},"Счет на оплату № 707 от 3 августа 2026 г"]
[2,"ШР11-73702-22У3, 380В, Iн.=250А, 5хПН2-100А(4 шт).","шт",4,70600,{"$f":"E5*D5","v":282400},"Счет на оплату № 707 от 3 августа 2026 г"]
[null,"Монтаж силового ящика с рубильником",null,null,null,0]
[3,"ЯРП11М-371-32УХЛ3У3, 380В, Iн.=400А. Степень защиты IP32.","шт",4,29000,116000]
[null,"Монтаж силового ящика с автоматическими выключателями",null,null,null,0]
[4,"Бокс КМПн 1/4 \"IEК\" пластиковый, навесной,\n4 модуля. Артикул МКР31-N-04-30-135(4 шт.);\n","шт",4,450,1800]
[5,"Автомат дифференциальный АД12 \"IEК\",\nдвухполюсный, Iн.=16А, Iн.дифф.=30mА(4 шт.);","шт",4,850,3400]
[6,"Бокс КМПн 2/4 \"IEK\"пластиковый, навесной,\n4 модуля. Артикул МКР42-N-04-30-12(1 шт.);","шт",1,572,572]
[7,"Автомат дифференциальный АД12,\nдвухполюсный, Iн.=6А, Iн.дифф.=30mА(1 шт.).","шт",1,720,720]
[null,"Кабельная продукция",null,null,null,0]
[8,"Кабель силовой КГВВнг 4х95 (30 м);","м",30,6428,192840]
[9,"Кабель силовой КГВВнг 4х50 (35 м);","м",35,3493,122255]
[10,"Кабель силовой КГВВнг 4х25 (5 м);","м",5,1759,8795]
[11,"Кабель силовой КГВВнг 4х70 (5 м);","м",5,4857,24285,null,"https://cable.ru/cable/marka-kgvvng_a__ls_4h70.php?utm_campaign=search_Dinamicheskie_obyavl_cable_prioritetnaya_poisk_119010781&utm_medium=cpc&utm_source=yandex&utm_term=---autotargeting:+1871984316197337233:+54551112363&utm_content=ph%7C54551112363%7Ccid%7C119010781%7Cgid%7C5557544245%7Caid%7C1871984316197337233%7CSOURCE%7Csearch%7Cyandex.ru%7CМытищи%7C10740%7Cdesktop%7CADV%7C%7C%7CDETAIL%7Cdynamic_places%7C3%7Cno%7Cnone%7C54551112363%7Cmain&utm_id=119010781&etext=&yclid=16003512234728488959"]
[12,"Кабель силовой КГВВнг 4х95 (25 м);","м",25,6427,160675]
[13,"Труба d=63 \"RuVinil\" гибкая гофрированная\nлегкого типа. Код 16301. (25 м);","м",25,298,7450]
[14,"Скоба К146пУ2. ТУ 36-1448-82.(50 шт.);","шт",50,37,1850]
[15,"Скоба К731У2, d=20мм. ТУ 36-1448-82.(25 шт.).","шт",25,36,900]
[16,"Труба d=63 из ПНД \"RuVinil\" гибкая\nгофрированная тяжелого типа. Код 26311.(3 м)","м",3,160,480]
[17,"Труба гофрированная двустенная ПНД/ПВД d=90 \"RUVinil\". Артикул Т2-КЛО-090К.(25 м)","м",25,190,4750]
[18,"Труба d=50 \"RuVinil\" гибкая гофрированная\nлегкого типа. Код 15001. (30 м)","м",30,85,2550]
[19,"Кабель ВВГнг 4х2,5 (63 м)","м",63,153,9639]
[20,"Кабель ВВГнг 4х1,5 (40 м)","м",40,98,3920]
[21,"Труба d=25 из ПНД \"RuVinil\" гибкая\nгофрированная тяжелого типа. Код 22511. (60 м);","м",60,73,4380,"цена кратно упаковки "]
[22,"Труба d=20 из ПНД \"RuVinil\" гибкая\nгофрированная тяжелого типа. Код 22011. (30 м);\n","м",30,136,4080,"цена кратно упаковки "]
[23,"труба гофрированная d=20 \"RUVinil\".\nлегкого типа. Артикул 12001. (3 м).","м",3,136,408,"цена кратно упаковки "]
[24,"Наконечник 95-12-15-МУХЛ3. ГОСТ 7386-80. (64 шт.)\n\n","шт",64,261,16704,"цена кратно упаковки "]
[25,"Наконечник 70-10-13-МУХЛ3. ГОСТ 7386-80.(16 шт);","шт",16,453,7248,"цена кратно упаковки "]
[26,"Наконечник 50-10-11-МУХЛ3. ГОСТ 7386-80. (32 шт.);","шт",32,300,9600,"цена кратно упаковки "]
[27,"Наконечник 25-8-8-МУХЛ3. ГОСТ 7386-80. (10 шт.);","шт",10,325,3250,"цена кратно упаковки "]
[28,"Наконечник 16-6-6-МУХЛ3. ГОСТ 7386-80. (10 шт.).","шт",10,49,490,"цена кратно упаковки "]
[null,"Воздухоснабжение",null,null,null,{"$f":"SUM(F36:F53)","v":394693}]
[1,"Трубы полипропиленовой PP-R 20х3,4 (41м); \n\n\n","м",41,53,2173]
[2,"Фитинг полипропиленовый муфта d=20(18 шт.);","шт",18,7,126]
[3,"Фитинг полипропиленовый угольник d=20(35 шт.);","шт",35,8,280]
[4,"Фитинг полипропиленовый с переходом на наружнную резьбу (20мм х 1/2\") (26 шт.)","шт",26,63,1638]
[5,"Кран шаровый муфтовый 11Б27п1 d=15 мм(24 шт);","шт",24,361,8664]
[6,"Кран шаровый муфтовый 11Б27п1 d=20 мм(5 шт);","шт",5,499,2495]
[7,"Муфта Ду20 ГОСТ8966-75(4 шт.);\n\n","шт",4,120,480]
[8,"Сгон Ду20 ГОСТ8969-75(4 шт.);","шт",4,60,240]
[9,"Контрогайка Ду20 ГОСТ8968-75(4 шт.)","шт",4,207,828]
[10,"Труба20х2.8. ГОСТ3262-75(16 м)","м",16,null,0]
[null,"Согласно примечанию РД после монтажа выполнить гидравлические испытания трубопровода.","м",16,null,0]
[11,"Труба стальная бесшовная 159*5 (0,3 м)","м",0.3,51630,15489,"Труба кратно 3 м. "]
[12,"Установка влагоотделителя","шт",1,5701,5701,"Фильтр влагоотделитель с редуктором (1/2\"; 16 бар) МАСТАК 691-41"]
[13,"Грунт ГФ-021","м2",6,120,720]
[14,"Эмаль ПФ-115","м2",6,120,720]
[null,"Монтаж осушителя рефрежераторного типа",null,null,null,0]
[15,"Осушитель рефрежераторного типа мод.IDFA4E-23 Q=510л/мин;G=1/2\" (1 шт.); Осушитель рефрижераторный ARIACOM DD 36\n","шт",1,60763,60763,"данный производител  отсутствует на рынке РФ замена "]
[16,"Осушитель рефрежераторного типа мод.IDFA11E-23 Q=1330л/мин;G=3/4\" (4 шт.) Осушитель рефрижераторный ARIACOM DD 72 ","шт",4,73594,294376,"данный производител  отсутствует на рынке РФ замена "]
[null,"ИТОГО ",null,null,null,{"$f":"SUM(F2,F35)","v":1460134}]